fUST/lending_fUST_20250810
["ID","MTS","AMOUNT","RATE_DAILY","PERIOD"]
[378263841,1754803843171,-1759.0,0.00023,3]
[378263842,1754803843180,-1759.0,0.00023,3]
[378263843,1754803843190,-487.04970827,0.00023,3]
[378263845,1754803843199,-461.62346162,0.00023,3]
[378263846,1754803843209,-843.0869304,0.00023,3]
[378263847,1754803843218,-160.0,0.00023,3]
[378263848,1754803843227,-231.96268195,0.00023,3]
[378263849,1754803843236,-12668.57659669,0.00023,3]
[378263850,1754803843245,-216.64838636,0.00023,3]
[378263851,1754803843255,-325.0,0.00023,3]
[378263852,1754803843264,-198.25115992,0.00023,3]
[378263853,1754803843274,-500.0,0.00023099,2]
[378263854,1754803843283,-460.0,0.00023138,2]
[378263855,1754803843293,-560.06,0.00023138,2]
[378263856,1754803843302,-975.8,0.00023138,2]
[378263857,1754803843312,-460.0,0.00023138,2]
[378263858,1754803843321,-460.0,0.00023138,2]
[378263859,1754803843331,-928.96,0.00023138,2]
[378263860,1754803843341,-460.0,0.00023138,2]
[378263862,1754803843351,-460.0,0.00023138,2]
[378263863,1754803843360,-460.0,0.00023139,2]
[378263864,1754803843370,-460.0,0.00023139,2]
[378263865,1754803843379,-460.0,0.00023139,2]
[378263866,1754803843388,-460.0,0.00023139,2]
[378263868,1754803843397,-460.0,0.00023139,2]
[378263869,1754803843406,-460.0,0.00023139,2]
[378263870,1754803843416,-460.0,0.00023139,2]
[378263871,1754803843425,-460.0,0.00023139,2]
[378263873,1754803843434,-460.0,0.00023139,2]
[378263874,1754803843444,-460.0,0.00023139,2]
[378263875,1754803843453,-460.0,0.00023139,2]
[378263876,1754803843462,-807.47,0.00023139,2]
[378263877,1754803843471,-918.15,0.00023139,2]
[378263878,1754803843480,-460.0,0.00023139,2]
[378263879,1754803843489,-460.0,0.00023139,2]
[378263880,1754803843499,-460.0,0.00023139,2]
[378263881,1754803843508,-397.88301509,0.00023139,2]
[378263882,1754803843517,-460.0,0.00023139,2]
[378263883,1754803843527,-460.0,0.00023139,2]
[378263884,1754803843536,-460.0,0.00023139,2]
[378263885,1754803843545,-460.0,0.00023139,2]
[378263886,1754803843554,-460.0,0.00023139,2]
[378263887,1754803843564,-460.0,0.00023139,2]
[378263888,1754803843573,-282.29990085,0.00023139,2]
[378263889,1754803843583,-460.0,0.0002314,2]
[378263890,1754803843592,-460.0,0.0002314,2]
[378263891,1754803843602,-564.73,0.0002314,2]
[378263893,1754803843611,-527.53,0.0002314,2]
[378263894,1754803843621,-460.0,0.0002314,2]
[378263896,1754803843630,-460.0,0.0002314,2]
[378263898,1754803843640,-460.0,0.00023142,2]
[378263900,1754803843649,-460.0,0.00023142,2]
[378263902,1754803843659,-492.55,0.00023142,2]
[378263904,1754803843668,-261.34,0.00023185,2]
[378263906,1754803843678,-460.0,0.00023273,2]
[378263908,1754803843687,-168.0,0.00023275,2]
[378263910,1754803843696,-168.0,0.0002333,2]
[378263912,1754803843706,-1372.70471104,0.00023409,2]
[378263914,1754803843715,-460.0,0.00023412,2]
[378263916,1754803843725,-560.06,0.00023412,2]
[378263918,1754803843734,-975.8,0.00023412,2]
[378263920,1754803843744,-460.0,0.00023412,2]
[378263922,1754803843753,-460.0,0.00023412,2]
[378263924,1754803843763,-928.96,0.00023412,2]
[378263926,1754803843772,-460.0,0.00023412,2]
[378263928,1754803843782,-460.0,0.00023412,2]
[378263930,1754803843791,-460.0,0.00023413,2]
[378263932,1754803843800,-460.0,0.00023413,2]
[378263933,1754803843809,-460.0,0.00023413,2]
[378263935,1754803843819,-460.0,0.00023413,2]
[378263937,1754803843829,-460.0,0.00023413,2]
[378263940,1754803843838,-460.0,0.00023413,2]
[378263941,1754803843848,-460.0,0.00023413,2]
[378263943,1754803843857,-460.0,0.00023413,2]
[378263945,1754803843866,-460.0,0.00023413,2]
[378263947,1754803843875,-460.0,0.00023413,2]
[378263949,1754803843884,-426.7873956,0.00023413,2]
[378263951,1754803843893,-807.47,0.00023413,2]
[378263953,1754803843902,-918.15,0.00023413,2]
[378263955,1754803843911,-460.0,0.00023413,2]
[378263957,1754803843920,-460.0,0.00023413,2]
[378263959,1754803843929,-460.0,0.00023413,2]
[378263961,1754803843939,-231.66,0.00023413,2]
[378263963,1754803843948,-460.0,0.00023413,2]
[378263965,1754803843957,-460.0,0.00023413,2]
[378263967,1754803843966,-460.0,0.00023413,2]
[378263969,1754803843975,-460.0,0.00023413,2]
[378263970,1754803843984,-460.0,0.00023413,2]
[378263973,1754803843994,-460.0,0.00023414,2]
[378263975,1754803844003,-460.0,0.00023414,2]
[378263976,1754803844013,-564.73,0.00023414,2]
[378263978,1754803844022,-527.53,0.00023414,2]
[378263980,1754803844032,-460.0,0.00023414,2]
[378263982,1754803844041,-460.0,0.00023414,2]
[378263984,1754803844050,-460.0,0.00023416,2]
[378263986,1754803844060,-460.0,0.00023416,2]
[378263988,1754803844069,-492.55,0.00023416,2]
[378263990,1754803844078,-2000.0,0.00023416,2]
[378263992,1754803844089,-721.70338505,0.00023416,2]
[378263994,1754803844099,-480.0,0.00023455,2]
[378263996,1754803844109,-1000.0,0.00023521,2]
[378263998,1754803844118,-600.0,0.00023521,2]
[378264000,1754803844127,-1000.0,0.00023521,2]
[378264002,1754803844136,-1000.0,0.00023521,2]
[378264004,1754803844146,-1002.53042982,0.00023521,2]
[378264006,1754803844156,-260.0,0.00023545,2]
[378264008,1754803844165,-460.0,0.00023547,2]
[378264010,1754803844174,-168.0,0.00023561,2]
[378264012,1754803844183,-151.0,0.00023612,2]
[378264014,1754803844192,-2150.0,0.00023659,2]
[378264016,1754803844201,-636.0,0.00023659,2]
[378264018,1754803844210,-971.0,0.00023659,2]
[378264020,1754803844220,-408.0,0.00023659,2]
[378264022,1754803844229,-416.045,0.00023659,2]
[378264024,1754803844238,-150.259,0.0002366,2]
[378264025,1754803844247,-460.0,0.00023686,2]
[378264027,1754803844256,-560.06,0.00023686,2]
[378264029,1754803844265,-975.8,0.00023686,2]
[378264031,1754803844275,-460.0,0.00023686,2]
[378264033,1754803844285,-460.0,0.00023686,2]
[378264035,1754803844294,-928.96,0.00023686,2]
[378264037,1754803844303,-460.0,0.00023686,2]
[378264039,1754803844313,-460.0,0.00023686,2]
[378264041,1754803844322,-460.0,0.00023687,2]
[378264043,1754803844331,-460.0,0.00023687,2]
[378264045,1754803844341,-460.0,0.00023687,2]
[378264047,1754803844350,-460.0,0.00023687,2]
[378264049,1754803844359,-460.0,0.00023687,2]
[378264051,1754803844369,-460.0,0.00023687,2]
[378264053,1754803844379,-460.0,0.00023687,2]
[378264055,1754803844388,-460.0,0.00023687,2]
[378264057,1754803844397,-460.0,0.00023687,2]
[378264059,1754803844407,-460.0,0.00023687,2]
[378264061,1754803844416,-807.47,0.00023687,2]
[378264063,1754803844425,-918.15,0.00023687,2]
[378264065,1754803844435,-460.0,0.00023687,2]
[378264067,1754803844445,-417.82,0.00023687,2]
[378264069,1754803844456,-460.0,0.00023687,2]
[378264071,1754803844465,-460.0,0.00023687,2]
[378264072,1754803844474,-460.0,0.00023687,2]
[378264074,1754803844483,-460.0,0.00023687,2]
[378264076,1754803844493,-460.0,0.00023687,2]
[378264078,1754803844502,-460.0,0.00023687,2]
[378264080,1754803844511,-460.0,0.00023688,2]
[378264082,1754803844520,-460.0,0.00023688,2]
[378264084,1754803844532,-564.73,0.00023688,2]
[378264086,1754803844541,-527.53,0.00023688,2]
[378264088,1754803844550,-460.0,0.00023688,2]
[378264090,1754803844559,-460.0,0.00023688,2]
[378264092,1754803844568,-460.0,0.0002369,2]
[378264094,1754803844577,-460.0,0.0002369,2]
[378264096,1754803844587,-492.55,0.0002369,2]
[378264098,1754803844596,-168.0,0.00023695,2]
[378264100,1754803844605,-460.0,0.00023821,2]
[378264102,1754803844615,-150.0,0.000239,2]
[378264104,1754803844625,-460.0,0.0002396,2]
[378264106,1754803844635,-560.06,0.0002396,2]
[378264108,1754803844645,-975.8,0.0002396,2]
[378264109,1754803844659,-460.0,0.0002396,2]
[378264111,1754803844669,-311.7,0.0002396,2]
[378264113,1754803844679,-928.96,0.0002396,2]
[378264115,1754803844689,-460.0,0.0002396,2]
[378264117,1754803844699,-460.0,0.0002396,2]
[378264119,1754803844708,-460.0,0.00023961,2]
[378264121,1754803844717,-460.0,0.00023961,2]
[378264123,1754803844727,-460.0,0.00023961,2]
[378264125,1754803844737,-460.0,0.00023961,2]
[378264127,1754803844746,-460.0,0.00023961,2]
[378264129,1754803844756,-460.0,0.00023961,2]
[378264131,1754803844766,-460.0,0.00023961,2]
[378264133,1754803844776,-460.0,0.00023961,2]
[378264135,1754803844787,-511.86779119,0.00023961,2]
[378264137,1754803844797,-460.0,0.00023961,2]
[378264139,1754803844806,-807.47,0.00023961,2]
[378264141,1754803844816,-918.15,0.00023961,2]
[378264143,1754803844825,-460.0,0.00023961,2]
[378264145,1754803844835,-460.0,0.00023961,2]
[378264147,1754803844845,-460.0,0.00023961,2]
[378264149,1754803844855,-460.0,0.00023961,2]
[378264151,1754803844865,-460.0,0.00023961,2]
[378264153,1754803844875,-460.0,0.00023961,2]
[378264155,1754803844885,-460.0,0.00023961,2]
[378264157,1754803844895,-460.0,0.00023962,2]
[378264159,1754803844905,-460.0,0.00023962,2]
[378264160,1754803844915,-564.73,0.00023962,2]
[378264162,1754803844924,-527.53,0.00023962,2]
[378264164,1754803844934,-460.0,0.00023962,2]
[378264166,1754803844944,-460.0,0.00023962,2]
[378264168,1754803844954,-460.0,0.00023964,2]
[378264170,1754803844964,-460.0,0.00023964,2]
[378264172,1754803844973,-492.55,0.00023964,2]
[378264174,1754803844983,-1019.57702833,0.00023964,2]
[378264176,1754803844992,-168.0,0.00023971,2]
[378264178,1754803845003,-1500.0,0.00024068,2]
[378264180,1754803845012,-900.0,0.00024068,2]
[378264182,1754803845022,-1500.0,0.00024068,2]
[378264184,1754803845034,-503.4546792,0.00024068,2]
[378264186,1754803845044,-360.0,0.00024093,2]
[378264188,1754803845054,-460.0,0.00024095,2]
[378264190,1754803845064,-526.42,0.00024127,3]
[378264192,1754803845073,-460.0,0.00024234,2]
[378264194,1754803845083,-560.06,0.00024234,2]
[378264196,1754803845097,-975.8,0.00024234,2]
[378264197,1754803845105,-460.0,0.00024234,2]
[378264199,1754803845114,-928.96,0.00024234,2]
[378264201,1754803845124,-460.0,0.00024234,2]
[378264203,1754803845134,-460.0,0.00024234,2]
[378264205,1754803845144,-163.45301942,0.00024235,2]
[378264207,1754803845154,-460.0,0.00024235,2]
[378264209,1754803845165,-460.0,0.00024235,2]
[378264211,1754803845179,-384.88812658,0.00024235,2]
[378264213,1754803845189,-460.0,0.00024235,2]
[378264215,1754803845198,-460.0,0.00024235,2]
[378264217,1754803845207,-460.0,0.00024235,2]
[378264219,1754803845217,-460.0,0.00024235,2]
[378264221,1754803845227,-460.0,0.00024235,2]
[378264223,1754803845243,-807.47,0.00024235,2]
[378264225,1754803845253,-918.15,0.00024235,2]
[378264227,1754803845263,-460.0,0.00024235,2]
[378264229,1754803845272,-460.0,0.00024235,2]
[378264231,1754803845283,-460.0,0.00024235,2]
[378264233,1754803845292,-460.0,0.00024235,2]
[378264234,1754803845301,-460.0,0.00024235,2]
[378264236,1754803845310,-460.0,0.00024235,2]
[378264238,1754803845320,-460.0,0.00024235,2]
[378264240,1754803845329,-460.0,0.00024236,2]
[378264242,1754803845338,-460.0,0.00024236,2]
[378264244,1754803845347,-564.73,0.00024236,2]
[378264246,1754803845357,-527.53,0.00024236,2]
[378264248,1754803845366,-460.0,0.00024236,2]
[378264250,1754803845375,-460.0,0.00024238,2]
[378264252,1754803845385,-460.0,0.00024238,2]
[378264254,1754803845394,-492.55,0.00024238,2]
[378264256,1754803845403,-500.0,0.00024315,2]
[378264258,1754803845412,-168.0,0.00024365,2]
[378264259,1754803845421,-460.0,0.00024369,2]
[378264261,1754803845430,-261.34,0.0002437,2]
[378264263,1754803845440,-460.0,0.00024508,2]
[378264266,1754803845451,-560.06,0.00024508,2]
[378264267,1754803845460,-975.8,0.00024508,2]
[378264269,1754803845470,-460.0,0.00024508,2]
[378264271,1754803845479,-928.96,0.00024508,2]
[378264273,1754803845488,-460.0,0.00024508,2]
[378264275,1754803845498,-460.0,0.00024508,2]
[378264277,1754803845507,-463.31148116,0.00024509,2]
[378264278,1754803845516,-460.0,0.00024509,2]
[378264279,1754803845526,-460.0,0.00024509,2]
[378264280,1754803845536,-460.0,0.00024509,2]
[378264281,1754803845546,-460.0,0.00024509,2]
[378264282,1754803845557,-460.0,0.00024509,2]
[378264283,1754803845567,-460.0,0.00024509,2]
[378264284,1754803845576,-807.47,0.00024509,2]
[378264285,1754803845586,-918.15,0.00024509,2]
[378264286,1754803845596,-460.0,0.00024509,2]
[378264287,1754803845606,-460.0,0.00024509,2]
[378264288,1754803845615,-460.0,0.00024509,2]
[378264289,1754803845625,-460.0,0.00024509,2]
[378264290,1754803845635,-460.0,0.00024509,2]
[378264292,1754803845645,-460.0,0.00024509,2]
[378264294,1754803845654,-460.0,0.00024509,2]
[378264296,1754803845664,-275.0,0.0002451,2]
[378264298,1754803845673,-460.0,0.0002451,2]
[378264300,1754803845682,-564.73,0.0002451,2]
[378264302,1754803845691,-349.37307383,0.0002451,2]
[378264318,1754803845837,-348.47,0.00022033,10]
[378264320,1754803845846,-3198.43,0.00022766,2]
[378264334,1754803845955,-5000.0,0.00021826,2]
[378264336,1754803845964,-9470.14659669,0.00022766,2]
[378264338,1754803845974,-460.0,0.00024236,2]
[378264353,1754803846105,-178.15692617,0.0002451,2]
[378264355,1754803846115,-477.66,0.0002451,2]
[378264357,1754803846124,-460.0,0.0002451,2]
[378264359,1754803846134,-460.0,0.00024512,2]
[378264361,1754803846143,-460.0,0.00024512,2]
[378264363,1754803846152,-492.55,0.00024512,2]
[378264365,1754803846162,-1004.28008434,0.00024616,2]
[378264367,1754803846171,-1200.0,0.00024616,2]
[378264369,1754803846181,-2000.0,0.00024616,2]
[378264371,1754803846190,-460.0,0.00024641,2]
[378264373,1754803846199,-460.0,0.00024643,2]
[378264375,1754803846208,-380.0,0.00024658,2]
[378264377,1754803846218,-273.57617682,0.00024658,2]
[378264379,1754803846227,-200.0,0.00024767,15]
[378264381,1754803846237,-200.0,0.00024767,15]
[378264383,1754803846246,-300.0,0.00024767,15]
[378264385,1754803846255,-416.63020698,0.00024782,2]
[378264387,1754803846267,-143.42979302,0.00024782,2]
[378264389,1754803846276,-975.8,0.00024782,2]
[378264391,1754803846286,-928.96,0.00024782,2]
[378264393,1754803846295,-460.0,0.00024782,2]
[378264395,1754803846305,-674.53692034,0.00024782,4]
[378264404,1754803846380,-710.0951068,0.00024782,4]
[378264463,1754803846933,-406.44797286,0.00024782,4]
[378264465,1754803846942,-460.0,0.00024783,2]
[378264467,1754803846951,-460.0,0.00024783,2]
[378264470,1754803846961,-460.0,0.00024783,2]
[378264471,1754803846970,-297.7668734,0.00024783,2]
[378264868,1754803853983,1236.38983247,0.000199,2]
[378264869,1754803913675,527.94,0.00031478,30]
[378264870,1754803972684,183.045333,0.00020641,2]
[378264871,1754803973034,565.4543626,0.00020804,2]
[378264872,1754804047138,5000.0,0.00021,2]
[378264873,1754804059108,1195.33880237,0.000199,2]
[378264874,1754804064139,5000.0,0.00021,2]
[378264875,1754804082123,2905.75869443,0.00021,2]
[378264876,1754804082146,2094.24130557,0.00021,2]
[378264877,1754804097390,5000.0,0.00021,2]
[378264878,1754804113745,5000.0,0.00021,2]
[378264880,1754804133442,5000.0,0.00021,2]
[378264881,1754804150829,5000.0,0.00021,2]
[378264882,1754804166027,5000.0,0.00021,2]
[378264883,1754804168472,1640152.66267251,0.00031465,30]
[378264884,1754804181862,5000.0,0.00021,2]
[378264885,1754804197429,5000.0,0.00021,2]
[378264886,1754804204188,297.929743,0.00013699,2]
[378264887,1754804204408,297.929743,0.00020187,2]
[378264889,1754804213315,2309.89920843,0.00021,2]
[378264890,1754804213339,2690.10079157,0.00021,2]
[378264891,1754804229756,5000.0,0.00021,2]
[378264892,1754804245185,1155.49417546,0.000199,2]
[378264893,1754804245219,5000.0,0.00021,2]
[378264894,1754804261164,5000.0,0.00021,2]
[378264895,1754804274223,618.69886884,0.00020804,2]
[378264896,1754804274528,309.34943442,0.00020849,2]
[378264897,1754804276676,2912.81211859,0.00021,2]
[378264898,1754804347476,10000.0,0.00020477,2]
[378264899,1754804369121,208.0,0.00028,30]
[378264900,1754804427580,1116.97770308,0.000199,2]
[378264901,1754804428477,3392.8651072,0.00020446,2]
[378264902,1754804502211,1000.0,0.00020458,2]
[378264903,1754804560164,177.53081,0.00020458,2]
[378264904,1754804575777,247.47954753,0.00020803,2]
[378264905,1754804619113,951.80917995,0.000199,2]
[378264918,1754804804038,426.88226336,0.000199,2]
[378264919,1754804804066,493.19994378,0.000199,2]
[378264921,1754804848781,288.297108,0.00020471,2]
[378264927,1754804999366,890.14780039,0.000199,2]
[378265041,1754805038520,-251.70148214,0.00021279,2]
[378265042,1754805038531,-172.1845301,0.00021342,2]
[378265043,1754805038542,-39.79996292,0.00021394,2]
[378265044,1754805038554,-132.38456717,0.00021394,2]
[378265045,1754805038563,-300.0,0.00021441,2]
[378265046,1754805038573,-103.92945767,0.00021441,2]
[378265047,1754805038590,-196.07054233,0.00021441,2]
[378265048,1754805038600,-1200.0,0.00021442,2]
[378265049,1754805038611,-300.0,0.00021442,2]
[378265050,1754805038621,-300.0,0.00021442,2]
[378265051,1754805038643,-1200.0,0.00021442,2]
[378265052,1754805038654,-300.0,0.00021442,2]
[378265053,1754805038665,-464.81103394,0.00021446,2]
[378265054,1754805038676,-489.34,0.00021446,2]
[378265055,1754805038686,-460.0,0.00021446,2]
[378265056,1754805038696,-460.0,0.00021446,2]
[378265057,1754805038707,-477.12,0.00021446,2]
[378265058,1754805038716,-460.0,0.00021446,2]
[378265059,1754805038726,-1542.01,0.00021446,2]
[378265060,1754805038735,-460.0,0.00021446,2]
[378265061,1754805038747,-460.0,0.00021446,2]
[378265062,1754805038758,-460.0,0.00021446,2]
[378265063,1754805038767,-460.0,0.00021446,2]
[378265064,1754805038777,-460.0,0.00021446,2]
[378265065,1754805038787,-460.0,0.00021446,2]
[378265066,1754805038797,-460.0,0.00021446,2]
[378265067,1754805038807,-460.0,0.00021446,2]
[378265068,1754805038816,-460.0,0.00021446,2]
[378265069,1754805038826,-460.0,0.00021446,2]
[378265070,1754805038836,-460.0,0.00021446,2]
[378265071,1754805038846,-460.0,0.00021446,2]
[378265072,1754805038856,-553.32,0.00021446,2]
[378265073,1754805038866,-460.0,0.00021446,2]
[378265074,1754805038875,-460.0,0.00021446,2]
[378265075,1754805038885,-460.0,0.00021446,2]
[378265076,1754805038895,-508.96,0.00021446,2]
[378265077,1754805038904,-460.0,0.00021446,2]
[378265078,1754805038914,-2271.17500331,0.00021447,2]
[378265079,1754805038928,-404.39176818,0.00021447,2]
[378265093,1754805044027,-22224.43322851,0.00021447,2]
[378265094,1754805044037,-209.27117087,0.00021494,2]
[378265095,1754805044194,-250.72882913,0.00021494,2]
[378265096,1754805044203,-460.0,0.00021494,2]
[378265098,1754805044212,-460.0,0.00021494,2]
[378265099,1754805044221,-460.0,0.00021494,2]
[378265100,1754805044234,-463.89809887,0.00021494,2]
[378265101,1754805044243,-461.63524623,0.00021494,2]
[378265102,1754805044252,-460.0,0.00021494,2]
[378265103,1754805044262,-460.0,0.00021494,2]
[378265104,1754805044271,-255.15323635,0.00021494,2]
[378265105,1754805044280,-460.35367847,0.00021494,2]
[378265106,1754805044289,-460.0,0.00021494,2]
[378265107,1754805044299,-504.50556788,0.00021494,2]
[378265108,1754805044308,-232.64070294,0.00021494,2]
[378265109,1754805044317,-460.0,0.00021494,2]
[378265110,1754805044327,-467.61506618,0.00021494,2]
[378265111,1754805044336,-469.73889058,0.00021494,2]
[378265112,1754805044345,-579.69,0.00021494,2]
[378265113,1754805044354,-460.0,0.00021494,2]
[378265114,1754805044364,-523.33981827,0.00021495,2]
[378265115,1754805044373,-460.0,0.00021495,2]
[378265116,1754805044383,-461.28179992,0.00021495,2]
[378265117,1754805044392,-460.0,0.00021495,2]
[378265118,1754805044401,-467.8041622,0.00021495,2]
[378265119,1754805044411,-460.0,0.00021495,2]
[378265120,1754805044420,-460.0,0.00021495,2]
[378265121,1754805044430,-460.0,0.00021495,2]
[378265122,1754805044439,-890.14780019,0.00021655,2]
[378265123,1754805044449,-460.0,0.0002172,2]
[378265124,1754805044458,-460.0,0.0002172,2]
[378265125,1754805044466,-477.12,0.0002172,2]
[378265126,1754805044475,-460.0,0.0002172,2]
[378265127,1754805044484,-1542.01,0.0002172,2]
[378265128,1754805044494,-460.0,0.0002172,2]
[378265129,1754805044504,-460.0,0.0002172,2]
[378265130,1754805044514,-460.0,0.0002172,2]
[378265131,1754805044523,-460.0,0.0002172,2]
[378265132,1754805044532,-460.0,0.0002172,2]
[378265133,1754805044542,-460.0,0.0002172,2]
[378265134,1754805044551,-460.0,0.0002172,2]
[378265135,1754805044561,-460.0,0.0002172,2]
[378265136,1754805044570,-460.0,0.0002172,2]
[378265137,1754805044578,-553.32,0.0002172,2]
[378265138,1754805044587,-596.13524454,0.0002172,2]
[378265139,1754805044595,-460.0,0.0002172,2]
[378265140,1754805044604,-460.0,0.0002172,2]
[378265141,1754805044613,-248.4,0.00021768,2]
[378265142,1754805044623,-460.0,0.00021768,2]
[378265143,1754805044633,-460.0,0.00021768,2]
[378265144,1754805044642,-460.0,0.00021768,2]
[378265145,1754805044652,-579.69,0.00021768,2]
[378265146,1754805044661,-460.0,0.00021768,2]
[378265147,1754805044675,-460.0,0.00021769,2]
[378265148,1754805044687,-460.0,0.00021769,2]
[378265149,1754805044697,-500.80327025,0.00021769,2]
[378265150,1754805044707,-460.0,0.00021769,2]
[378265151,1754805044717,-448.98705348,0.00021769,2]
[378265152,1754805044730,-11.01294652,0.00021769,2]
[378265153,1754805044739,-333.94033156,0.00021769,2]
[378265160,1754805046795,-126.05966844,0.00021769,2]
[378265161,1754805046805,-460.0,0.00021769,2]
[378265162,1754805046815,-460.0,0.00021769,2]
[378265163,1754805046824,-460.0,0.00021769,2]
[378265164,1754805046835,-460.0,0.00021994,2]
[378265165,1754805046845,-477.12,0.00021994,2]
[378265166,1754805046855,-460.0,0.00021994,2]
[378265167,1754805046864,-1542.01,0.00021994,2]
[378265168,1754805046874,-460.0,0.00021994,2]
[378265169,1754805046884,-460.0,0.00021994,2]
[378265170,1754805046893,-513.28676322,0.00021994,2]
[378265171,1754805046903,-460.0,0.00021994,2]
[378265172,1754805046913,-460.0,0.00021994,2]
[378265173,1754805046922,-460.0,0.00021994,2]
[378265174,1754805046932,-460.0,0.00021994,2]
[378265175,1754805046942,-460.0,0.00021994,2]
[378265176,1754805046951,-460.0,0.00021994,2]
[378265177,1754805046961,-553.32,0.00021994,2]
[378265179,1754805046970,-460.0,0.00021994,2]
[378265180,1754805046980,-460.0,0.00021994,2]
[378265181,1754805046989,-453.6,0.00022,2]
[378265182,1754805046999,-460.0,0.00022042,2]
[378265183,1754805047010,-199.37,0.00022042,2]
[378265184,1754805047019,-460.0,0.00022042,2]
[378265185,1754805047029,-579.69,0.00022042,2]
[378265186,1754805047039,-460.0,0.00022042,2]
[378265187,1754805047048,-460.0,0.00022043,2]
[378265188,1754805047058,-460.0,0.00022043,2]
[378265189,1754805047068,-460.0,0.00022043,2]
[378265190,1754805047078,-460.0,0.00022043,2]
[378265191,1754805047088,-460.0,0.00022043,2]
[378265192,1754805047099,-460.0,0.00022043,2]
[378265193,1754805047108,-460.0,0.00022043,2]
[378265194,1754805047117,-151.0,0.00022243,2]
[378265195,1754805047127,-500.0,0.0002225,2]
[378265196,1754805047137,-460.0,0.00022268,2]
[378265197,1754805047147,-477.12,0.00022268,2]
[378265198,1754805047156,-460.0,0.00022268,2]
[378265199,1754805047166,-1542.01,0.00022268,2]
[378265200,1754805047176,-338.73,0.00022268,2]
[378265201,1754805047185,-92.13849788,0.00022268,2]
[378265202,1754805096715,432.71113837,0.00019894,2]
[378265203,1754805188851,758.03961353,0.000199,2]
[378265206,1754805308584,268.136768,0.00013699,2]
[378265207,1754805308784,268.136768,0.00020187,2]
[378265209,1754805340067,20000.0,0.00020522,2]
[378265210,1754805376003,732.78275666,0.000199,2]
[378265211,1754805397867,288.47409225,0.00019894,2]
[378265212,1754805560144,708.35666481,0.000199,2]
[378265213,1754805585036,716.73073779,0.00015,2]
[378265215,1754805635815,14154.98660842,0.0002047,2]
[378265216,1754805635841,10745.01339158,0.0002047,2]
[378265217,1754805699023,192.3160615,0.00019894,2]
[378265218,1754805701512,3883.0206654,0.00020457,2]
[378265220,1754805758716,685.25337727,0.000199,2]
[378265221,1754805785994,288.297109,0.00020562,2]
[378265222,1754805801210,200.13,0.00021,2]
[378265237,1754805939574,662.41159825,0.000199,2]
[378265240,1754806000096,178.76597063,0.000189,2]
[378265243,1754806128113,589.57422295,0.000199,2]
[378265295,1754806238542,-160.0,0.00021246,2]
[378265298,1754806238552,-214.83611347,0.00021342,2]
[378265300,1754806238562,-214.83611347,0.00021345,2]
[378265302,1754806238572,-516.8532748,0.00021346,2]